[Event "2026 European Womens Championship"]
[Site "Batumi, GE"]
[Date "2026.05.29"]
[Round "5"]
[White "Fataliyeva, Ulviyya"]
[Black "Kazarian, Anna-Maja"]
[Result "1-0"]
[Board "52"]
[TimeControl "5400+30"]
[WhiteFideId "13403052"]
[BlackFideId "1033689"]
[WhiteElo "2450"]
[BlackElo "2317"]
[WhiteTitle "IM"]
[BlackTitle "FM"]
[WhiteClock "0:05:58"]
[BlackClock "0:00:45"]
[Variant "Standard"]

1. e4 {[%clk 1:21:26]}  e6 {[%clk 1:30:50]} 2. d4 {[%clk 1:21:51]}  d5 {[%clk 1:31:17]} 3. Nc3 {[%clk 1:22:15]}  Nf6 {[%clk 1:31:39]}
4. Bg5 {[%clk 1:22:39]}  dxe4 {[%clk 1:31:42]} 5. Nxe4 {[%clk 1:22:52]}  Nbd7 {[%clk 1:30:11]} 6. Nf3 {[%clk 1:23:08]}  h6 {[%clk 1:30:36]}
7. Nxf6+ {[%clk 1:18:41]}  Nxf6 {[%clk 1:30:57]} 8. Be3 {[%clk 1:18:43]}  Nd5 {[%clk 1:28:37]} 9. Qd2 {[%clk 1:17:04]}  Nxe3 {[%clk 1:14:32]}
10. Qxe3 {[%clk 1:16:49]}  Qd5 {[%clk 1:12:43]} 11. Bd3 {[%clk 1:13:05]}  c5 {[%clk 1:02:49]} 12. O-O-O {[%clk 0:47:23]}  Bd7 {[%clk 0:42:40]}
13. Kb1 {[%clk 0:46:44]}  cxd4 {[%clk 0:36:43]} 14. Nxd4 {[%clk 0:46:14]}  Bc5 {[%clk 0:35:20]} 15. Be4 {[%clk 0:44:38]}  Qd6 {[%clk 0:34:34]}
16. Qc3 {[%clk 0:43:04]}  Bb4 {[%clk 0:30:57]} 17. Qb3 {[%clk 0:34:03]}  Qb6 {[%clk 0:24:26]} 18. c3 {[%clk 0:22:56]}  Bc5 {[%clk 0:18:30]}
19. Bxb7 {[%clk 0:22:26]}  Rb8 {[%clk 0:17:03]} 20. Qxb6 {[%clk 0:22:46]}  Bxb6 {[%clk 0:16:22]} 21. Bc6 {[%clk 0:22:52]}  Bxc6 {[%clk 0:15:50]}
22. Nxc6 {[%clk 0:23:16]}  Rc8 {[%clk 0:16:17]} 23. Ne5 {[%clk 0:20:54]}  Bc7 {[%clk 0:12:54]} 24. Rhe1 {[%clk 0:19:42]}  g5 {[%clk 0:11:03]}
25. Re4 {[%clk 0:17:08]}  Bb8 {[%clk 0:09:19]} 26. g3 {[%clk 0:15:05]}  f5 {[%clk 0:06:36]} 27. Re2 {[%clk 0:12:50]}  Rh7 {[%clk 0:04:43]}
28. Nf3 {[%clk 0:12:52]}  Re7 {[%clk 0:02:29]} 29. Rde1 {[%clk 0:12:03]}  Kf7 {[%clk 0:01:59]} 30. Nd4 {[%clk 0:12:16]}  Rce8 {[%clk 0:00:49]}
31. Nc6 {[%clk 0:12:06]}  Rb7 {[%clk 0:01:11]} 32. Rxe6 {[%clk 0:11:56]}  Rxe6 {[%clk 0:01:26]} 33. Nd8+ {[%clk 0:10:47]}  Ke7 {[%clk 0:01:03]}
34. Nxe6 {[%clk 0:11:06]}  Kf6 {[%clk 0:01:26]} 35. Nc5 {[%clk 0:10:42]}  Rh7 {[%clk 0:00:43]} 36. Re6+ {[%clk 0:08:05]}  Kf7 {[%clk 0:01:08]}
37. Ra6 {[%clk 0:08:09]}  Ke7 {[%clk 0:01:11]} 38. Nb3 {[%clk 0:08:20]}  Kd7 {[%clk 0:00:55]} 39. Nd4 {[%clk 0:08:11]}  Re7 {[%clk 0:00:43]}
40. Rxh6 {[%clk 0:06:42]}  Re1+ {[%clk 0:00:41]} 41. Kc2 {[%clk 0:07:05]}  Rf1 {[%clk 0:00:40]} 42. Rh7+ {[%clk 0:05:37]}  Kc8 {[%clk 0:00:45]}
43. f3 {[%clk 0:05:58]} 1-0

[Event "2026 European Womens Championship"]
[Site "Batumi, GE"]
[Date "2026.05.29"]
[Round "5"]
[White "Narva, Mai"]
[Black "Hrebenshchykova, Yelyzaveta"]
[Result "1/2-1/2"]
[Board "53"]
[TimeControl "5400+30"]
[WhiteFideId "4500512"]
[BlackFideId "14159899"]
[WhiteElo "2426"]
[BlackElo "2309"]
[WhiteTitle "IM"]
[BlackTitle "WGM"]
[WhiteClock "0:29:29"]
[BlackClock "0:16:03"]
[Variant "Standard"]

1. e4 {[%clk 1:29:28]}  e5 {[%clk 1:26:46]} 2. Nf3 {[%clk 1:29:42]}  Nc6 {[%clk 1:27:13]} 3. Bc4 {[%clk 1:29:45]}  Nf6 {[%clk 1:26:53]}
4. d3 {[%clk 1:30:00]}  Be7 {[%clk 1:26:33]} 5. O-O {[%clk 1:30:06]}  O-O {[%clk 1:26:55]} 6. a4 {[%clk 1:28:53]}  d6 {[%clk 1:15:50]}
7. a5 {[%clk 1:28:29]}  a6 {[%clk 1:15:32]} 8. c3 {[%clk 1:26:08]}  Be6 {[%clk 1:12:15]} 9. Bxe6 {[%clk 1:18:56]}  fxe6 {[%clk 1:12:42]}
10. Re1 {[%clk 1:18:46]}  h6 {[%clk 1:05:26]} 11. Qb3 {[%clk 1:15:16]}  Qd7 {[%clk 1:05:43]} 12. Nbd2 {[%clk 1:13:49]}  Nh5 {[%clk 0:47:35]}
13. d4 {[%clk 1:05:04]}  Nf4 {[%clk 0:31:14]} 14. Nc4 {[%clk 1:02:00]}  Ng6 {[%clk 0:31:40]} 15. dxe5 {[%clk 0:51:47]}  dxe5 {[%clk 0:23:34]}
16. Rd1 {[%clk 0:46:59]}  Qc8 {[%clk 0:24:00]} 17. Be3 {[%clk 0:46:32]}  Rb8 {[%clk 0:24:26]} 18. Rd3 {[%clk 0:44:54]}  Rd8 {[%clk 0:17:42]}
19. Rad1 {[%clk 0:41:41]}  Rxd3 {[%clk 0:17:14]} 20. Rxd3 {[%clk 0:42:07]}  Qe8 {[%clk 0:17:42]} 21. g3 {[%clk 0:36:39]}  Bf6 {[%clk 0:18:09]}
22. Bc5 {[%clk 0:30:32]}  Rd8 {[%clk 0:17:56]} 23. Re3 {[%clk 0:25:16]}  Rb8 {[%clk 0:16:14]} 24. Re2 {[%clk 0:21:04]}  Nd8 {[%clk 0:12:46]}
25. h4 {[%clk 0:17:26]}  Qc6 {[%clk 0:10:24]} 26. Ba7 {[%clk 0:13:57]}  Ra8 {[%clk 0:10:19]} 27. h5 {[%clk 0:14:13]}  Nf8 {[%clk 0:03:42]}
28. Be3 {[%clk 0:06:44]}  Qxe4 {[%clk 0:02:46]} 29. Ncd2 {[%clk 0:05:59]}  Qg4 {[%clk 0:03:11]} 30. Bc5 {[%clk 0:06:09]}  Nd7 {[%clk 0:02:38]}
31. Ba3 {[%clk 0:06:33]}  Qxh5 {[%clk 0:02:57]} 32. Kg2 {[%clk 0:06:43]}  Qf7 {[%clk 0:01:00]} 33. Nc4 {[%clk 0:03:45]}  Rb8 {[%clk 0:01:26]}
34. Ncxe5 {[%clk 0:03:55]}  Nxe5 {[%clk 0:01:52]} 35. Nxe5 {[%clk 0:04:18]}  Bxe5 {[%clk 0:02:19]} 36. Rxe5 {[%clk 0:04:41]}  Nc6 {[%clk 0:02:47]}
37. Rxe6 {[%clk 0:04:38]}  Nxa5 {[%clk 0:03:10]} 38. Qd5 {[%clk 0:04:37]}  Nc6 {[%clk 0:03:35]} 39. Bc5 {[%clk 0:03:58]}  Rd8 {[%clk 0:02:24]}
40. Qe4 {[%clk 0:04:05]}  Qh5 {[%clk 0:01:19]} 41. b4 {[%clk 0:02:38]}  a5 {[%clk 0:23:14]} 42. g4 {[%clk 0:28:28]}  Qg5 {[%clk 0:21:54]}
43. Be7 {[%clk 0:28:29]}  Nxe7 {[%clk 0:21:28]} 44. Rxe7 {[%clk 0:28:54]}  axb4 {[%clk 0:16:06]} 45. cxb4 {[%clk 0:29:07]}  Qd5 {[%clk 0:15:15]}
46. Qxd5+ {[%clk 0:29:05]}  Rxd5 {[%clk 0:15:42]} 47. Rxc7 {[%clk 0:29:29]}  Rb5 {[%clk 0:16:03]} 1/2-1/2

[Event "2026 European Womens Championship"]
[Site "Batumi, GE"]
[Date "2026.05.29"]
[Round "5"]
[White "Zimina, Olga"]
[Black "Ushenina, Anna"]
[Result "0-1"]
[Board "54"]
[TimeControl "5400+30"]
[WhiteFideId "4132190"]
[BlackFideId "14110911"]
[WhiteElo "2290"]
[BlackElo "2420"]
[WhiteTitle "IM"]
[BlackTitle "GM"]
[WhiteClock "0:06:37"]
[BlackClock "0:09:04"]
[Variant "Standard"]

1. c4 {[%clk 1:30:55]}  e6 {[%clk 1:30:12]} 2. g3 {[%clk 1:31:08]}  d5 {[%clk 1:30:06]} 3. Bg2 {[%clk 1:31:25]}  d4 {[%clk 1:29:56]}
4. Nf3 {[%clk 1:31:45]}  Nc6 {[%clk 1:29:49]} 5. O-O {[%clk 1:32:01]}  Nh6 {[%clk 1:27:24]} 6. e3 {[%clk 1:32:06]}  Nf5 {[%clk 1:26:16]}
7. e4 {[%clk 1:32:23]}  Nfe7 {[%clk 1:24:51]} 8. e5 {[%clk 1:32:40]}  d3 {[%clk 1:24:40]} 9. b3 {[%clk 1:24:18]}  Nf5 {[%clk 1:16:10]}
10. Nc3 {[%clk 1:21:15]}  h5 {[%clk 1:06:13]} 11. h4 {[%clk 1:07:42]}  Bc5 {[%clk 0:52:37]} 12. Ne4 {[%clk 0:56:42]}  Bd4 {[%clk 0:52:55]}
13. Nxd4 {[%clk 0:53:19]}  Ncxd4 {[%clk 0:48:07]} 14. Bb2 {[%clk 0:38:23]}  Ne2+ {[%clk 0:46:01]} 15. Kh2 {[%clk 0:34:48]}  Nxh4 {[%clk 0:45:25]}
16. b4 {[%clk 0:31:20]}  Nxg2 {[%clk 0:35:11]} 17. Kxg2 {[%clk 0:31:30]}  b5 {[%clk 0:32:44]} 18. Nc5 {[%clk 0:28:09]}  bxc4 {[%clk 0:31:09]}
19. Qa4+ {[%clk 0:27:48]}  Kf8 {[%clk 0:22:10]} 20. Rh1 {[%clk 0:26:40]}  Bb7+ {[%clk 0:14:11]} 21. Nxb7 {[%clk 0:24:44]}  Qd5+ {[%clk 0:14:41]}
22. f3 {[%clk 0:25:05]}  Qxb7 {[%clk 0:15:09]} 23. Rh4 {[%clk 0:23:33]}  Qd5 {[%clk 0:10:26]} 24. Qa6 {[%clk 0:18:58]}  Qd8 {[%clk 0:09:23]}
25. Qxc4 {[%clk 0:12:41]}  Qg5 {[%clk 0:09:36]} 26. Qc5+ {[%clk 0:12:47]}  Kg8 {[%clk 0:10:01]} 27. Qf2 {[%clk 0:12:21]}  Qxd2 {[%clk 0:09:37]}
28. Bd4 {[%clk 0:11:18]}  Qxb4 {[%clk 0:05:41]} 29. Rd1 {[%clk 0:11:33]}  Qb5 {[%clk 0:04:52]} 30. Qe3 {[%clk 0:07:02]}  c5 {[%clk 0:01:33]}
31. Bxc5 {[%clk 0:06:48]}  Nc3 {[%clk 0:01:35]} 32. Rxd3 {[%clk 0:06:24]}  Nd5 {[%clk 0:02:04]} 33. Qd4 {[%clk 0:03:58]}  a5 {[%clk 0:01:32]}
34. a4 {[%clk 0:03:35]}  Qc6 {[%clk 0:01:50]} 35. Rb3 {[%clk 0:02:12]}  g6 {[%clk 0:01:24]} 36. Rh1 {[%clk 0:01:36]}  Kh7 {[%clk 0:00:53]}
37. Rb5 {[%clk 0:01:52]}  Rhd8 {[%clk 0:00:37]} 38. Qe4 {[%clk 0:02:11]}  Kg7 {[%clk 0:00:45]} 39. Rc1 {[%clk 0:01:12]}  Qd7 {[%clk 0:00:44]}
40. Bd6 {[%clk 0:01:14]}  Rdc8 {[%clk 0:00:46]} 41. Rbc5 {[%clk 0:23:02]}  Rxc5 {[%clk 0:30:12]} 42. Rxc5 {[%clk 0:22:37]}  Rc8 {[%clk 0:28:16]}
43. Rxa5 {[%clk 0:07:33]}  Rc4 {[%clk 0:07:56]} 44. Qb1 {[%clk 0:06:20]}  Rc2+ {[%clk 0:07:56]} 45. Kh3 {[%clk 0:06:18]}  Qc6 {[%clk 0:08:19]}
46. Qb8 {[%clk 0:05:46]}  Nf4+ {[%clk 0:08:29]} 47. Kh4 {[%clk 0:05:57]}  Rh2+ {[%clk 0:08:14]} 48. Kg5 {[%clk 0:06:23]}  Nh3+ {[%clk 0:08:20]}
49. Kh4 {[%clk 0:06:42]}  Ng1+ {[%clk 0:08:38]} 50. Kg5 {[%clk 0:06:37]}  Qc1+ {[%clk 0:09:04]} 0-1

[Event "2026 European Womens Championship"]
[Site "Batumi, GE"]
[Date "2026.05.29"]
[Round "5"]
[White "Sliwicka, Alicja"]
[Black "Arabidze, Meri"]
[Result "0-1"]
[Board "55"]
[TimeControl "5400+30"]
[WhiteFideId "1150677"]
[BlackFideId "13604040"]
[WhiteElo "2315"]
[BlackElo "2409"]
[WhiteTitle "WGM"]
[BlackTitle "IM"]
[WhiteClock "0:14:16"]
[BlackClock "0:10:30"]
[Variant "Standard"]

1. e4 {[%clk 1:30:45]}  c5 {[%clk 1:30:48]} 2. Nf3 {[%clk 1:31:09]}  e6 {[%clk 1:31:14]} 3. d4 {[%clk 1:31:33]}  cxd4 {[%clk 1:31:39]}
4. Nxd4 {[%clk 1:31:59]}  a6 {[%clk 1:32:04]} 5. Bd3 {[%clk 1:32:20]}  Bc5 {[%clk 1:32:26]} 6. Nb3 {[%clk 1:32:42]}  Ba7 {[%clk 1:32:50]}
7. Qe2 {[%clk 1:33:04]}  Ne7 {[%clk 1:32:55]} 8. Nc3 {[%clk 1:27:45]}  b5 {[%clk 1:30:04]} 9. a3 {[%clk 1:25:12]}  Nbc6 {[%clk 1:28:24]}
10. O-O {[%clk 1:12:31]}  O-O {[%clk 1:27:16]} 11. Be3 {[%clk 1:11:16]}  Ne5 {[%clk 1:21:15]} 12. Rad1 {[%clk 1:06:54]}  Qc7 {[%clk 1:11:20]}
13. Bxa7 {[%clk 1:00:52]}  Rxa7 {[%clk 1:05:55]} 14. f4 {[%clk 0:52:46]}  Qb6+ {[%clk 0:48:45]} 15. Qf2 {[%clk 0:46:21]}  Qxf2+ {[%clk 0:48:32]}
16. Rxf2 {[%clk 0:45:19]}  Nxd3 {[%clk 0:48:15]} 17. Rxd3 {[%clk 0:45:35]}  Rc7 {[%clk 0:45:09]} 18. Rfd2 {[%clk 0:42:56]}  f5 {[%clk 0:43:44]}
19. e5 {[%clk 0:40:37]}  Kf7 {[%clk 0:38:57]} 20. Nc1 {[%clk 0:28:06]}  h6 {[%clk 0:34:33]} 21. N1e2 {[%clk 0:27:08]}  g5 {[%clk 0:32:20]}
22. Rh3 {[%clk 0:25:44]}  Kg7 {[%clk 0:28:00]} 23. Rg3 {[%clk 0:24:55]}  Ng6 {[%clk 0:24:42]} 24. h4 {[%clk 0:19:49]}  Nxh4 {[%clk 0:23:12]}
25. fxg5 {[%clk 0:20:13]}  Ng6 {[%clk 0:17:23]} 26. gxh6+ {[%clk 0:19:36]}  Kxh6 {[%clk 0:17:49]} 27. Rd4 {[%clk 0:16:40]}  Rc4 {[%clk 0:14:52]}
28. Rxc4 {[%clk 0:17:04]}  bxc4 {[%clk 0:15:19]} 29. Re3 {[%clk 0:17:30]}  Bb7 {[%clk 0:14:51]} 30. Nd4 {[%clk 0:14:10]}  Rg8 {[%clk 0:10:45]}
31. Rg3 {[%clk 0:13:45]}  Rc8 {[%clk 0:10:11]} 32. Na4 {[%clk 0:07:02]}  Nxe5 {[%clk 0:09:51]} 33. Nb6 {[%clk 0:07:30]}  Rb8 {[%clk 0:05:41]}
34. Rc3 {[%clk 0:05:12]}  Be4 {[%clk 0:07:23]} 35. Na4 {[%clk 0:04:26]}  Kg5 {[%clk 0:04:01]} 36. b4 {[%clk 0:04:19]}  cxb3 {[%clk 0:03:41]}
37. cxb3 {[%clk 0:04:48]}  Nd3 {[%clk 0:03:02]} 38. b4 {[%clk 0:04:00]}  Kf4 {[%clk 0:02:24]} 39. Nc5 {[%clk 0:02:18]}  Nxc5 {[%clk 0:01:53]}
40. Ne2+ {[%clk 0:02:17]}  Ke5 {[%clk 0:00:45]} 41. Rxc5+ {[%clk 0:02:43]}  Bd5 {[%clk 0:25:14]} 42. Nc3 {[%clk 0:28:21]}  Rb6 {[%clk 0:17:26]}
43. Nxd5 {[%clk 0:18:54]}  exd5 {[%clk 0:17:44]} 44. Kf2 {[%clk 0:19:05]}  Rc6 {[%clk 0:15:28]} 45. Ra5 {[%clk 0:19:34]}  Ke4 {[%clk 0:14:57]}
46. b5 {[%clk 0:18:19]}  axb5 {[%clk 0:13:13]} 47. Rxb5 {[%clk 0:18:45]}  Rc2+ {[%clk 0:10:38]} 48. Kf1 {[%clk 0:17:27]}  d4 {[%clk 0:10:22]}
49. Rb8 {[%clk 0:13:46]}  d3 {[%clk 0:09:48]} 50. Re8+ {[%clk 0:13:44]}  Kd4 {[%clk 0:10:03]} 51. Ke1 {[%clk 0:13:47]}  Rxg2 {[%clk 0:09:55]}
52. Rf8 {[%clk 0:13:55]}  d2+ {[%clk 0:10:07]} 53. Kd1 {[%clk 0:14:16]}  Kd3 {[%clk 0:10:30]} 0-1

[Event "2026 European Womens Championship"]
[Site "Batumi, GE"]
[Date "2026.05.29"]
[Round "5"]
[White "Wagner, Dinara"]
[Black "Pogorelskikh, Sofia"]
[Result "1/2-1/2"]
[Board "56"]
[TimeControl "5400+30"]
[WhiteFideId "24157570"]
[BlackFideId "44164548"]
[WhiteElo "2408"]
[BlackElo "2284"]
[WhiteTitle "IM"]
[BlackTitle "WGM"]
[WhiteClock "0:01:29"]
[BlackClock "0:01:23"]
[Variant "Standard"]

1. d4 {[%clk 1:30:49]}  Nf6 {[%clk 1:30:23]} 2. c4 {[%clk 1:31:12]}  e6 {[%clk 1:30:40]} 3. Nf3 {[%clk 1:31:28]}  d5 {[%clk 1:30:44]}
4. Nc3 {[%clk 1:31:36]}  Bb4 {[%clk 1:30:53]} 5. Qa4+ {[%clk 1:31:53]}  Nc6 {[%clk 1:31:09]} 6. e3 {[%clk 1:32:17]}  O-O {[%clk 1:30:17]}
7. Qc2 {[%clk 1:32:42]}  dxc4 {[%clk 1:17:09]} 8. Bxc4 {[%clk 1:32:31]}  Bd6 {[%clk 1:16:03]} 9. h3 {[%clk 1:32:21]}  e5 {[%clk 1:13:50]}
10. O-O {[%clk 1:32:19]}  a6 {[%clk 1:06:47]} 11. a3 {[%clk 1:32:01]}  exd4 {[%clk 1:04:53]} 12. exd4 {[%clk 1:30:44]}  h6 {[%clk 1:00:27]}
13. Bxh6 {[%clk 1:14:28]}  gxh6 {[%clk 0:54:48]} 14. Qg6+ {[%clk 1:14:46]}  Kh8 {[%clk 0:55:06]} 15. Qxh6+ {[%clk 1:15:13]}  Nh7 {[%clk 0:51:41]}
16. Ne4 {[%clk 0:59:51]}  Bf5 {[%clk 0:45:58]} 17. Rae1 {[%clk 0:42:40]}  Bxe4 {[%clk 0:43:09]} 18. Rxe4 {[%clk 0:42:51]}  Qf6 {[%clk 0:42:34]}
19. Qe3 {[%clk 0:41:07]}  Ne7 {[%clk 0:37:13]} 20. Ne5 {[%clk 0:25:33]}  Nf5 {[%clk 0:32:41]} 21. Qd3 {[%clk 0:24:23]}  Bxe5 {[%clk 0:27:17]}
22. dxe5 {[%clk 0:23:47]}  Qe7 {[%clk 0:22:35]} 23. Qf3 {[%clk 0:20:06]}  Ng7 {[%clk 0:21:49]} 24. Bd3 {[%clk 0:16:36]}  Rad8 {[%clk 0:19:03]}
25. Bb1 {[%clk 0:17:02]}  f5 {[%clk 0:14:32]} 26. exf6 {[%clk 0:14:05]}  Qxf6 {[%clk 0:14:54]} 27. Qxf6 {[%clk 0:06:25]}  Nxf6 {[%clk 0:15:11]}
28. Rh4+ {[%clk 0:06:54]}  Nfh5 {[%clk 0:12:49]} 29. g4 {[%clk 0:02:50]}  Rf4 {[%clk 0:12:56]} 30. Bg6 {[%clk 0:03:17]}  Kg8 {[%clk 0:08:50]}
31. Re1 {[%clk 0:03:44]}  Nf6 {[%clk 0:08:05]} 32. Re7 {[%clk 0:00:42]}  Rd7 {[%clk 0:05:04]} 33. Re2 {[%clk 0:01:09]}  c5 {[%clk 0:03:46]}
34. Rh6 {[%clk 0:01:20]}  Rd8 {[%clk 0:02:56]} 35. g5 {[%clk 0:00:40]}  Nd5 {[%clk 0:02:13]} 36. Bh7+ {[%clk 0:00:46]}  Kf8 {[%clk 0:02:16]}
37. Bg6 {[%clk 0:01:13]}  Kg8 {[%clk 0:02:28]} 38. Bh7+ {[%clk 0:01:25]}  Kf8 {[%clk 0:02:52]} 39. Bg6 {[%clk 0:01:44]}  Kg8 {[%clk 0:01:23]}
40. Bh7+ {[%clk 0:01:29]} 1/2-1/2

[Event "2026 European Womens Championship"]
[Site "Batumi, GE"]
[Date "2026.05.29"]
[Round "5"]
[White "Unuk, Laura"]
[Black "Danielian, Elina"]
[Result "1-0"]
[Board "57"]
[TimeControl "5400+30"]
[WhiteFideId "14609215"]
[BlackFideId "13300210"]
[WhiteElo "2289"]
[BlackElo "2390"]
[WhiteTitle "IM"]
[BlackTitle "GM"]
[WhiteClock "0:03:35"]
[BlackClock "0:01:32"]
[Variant "Standard"]

1. d4 {[%clk 1:30:09]}  Nf6 {[%clk 1:30:01]} 2. c4 {[%clk 1:30:13]}  e6 {[%clk 1:30:26]} 3. Nc3 {[%clk 1:30:19]}  Bb4 {[%clk 1:30:50]}
4. e3 {[%clk 1:30:33]}  O-O {[%clk 1:31:07]} 5. a3 {[%clk 1:30:37]}  Bxc3+ {[%clk 1:31:26]} 6. bxc3 {[%clk 1:31:02]}  b6 {[%clk 1:30:47]}
7. Ne2 {[%clk 1:23:09]}  Ba6 {[%clk 1:27:42]} 8. Ng3 {[%clk 1:17:44]}  d5 {[%clk 1:23:36]} 9. cxd5 {[%clk 1:13:18]}  Bxf1 {[%clk 1:23:50]}
10. Nxf1 {[%clk 1:13:21]}  exd5 {[%clk 1:23:48]} 11. Ng3 {[%clk 1:13:17]}  c5 {[%clk 1:23:38]} 12. O-O {[%clk 1:13:16]}  Nc6 {[%clk 1:23:54]}
13. dxc5 {[%clk 1:00:45]}  bxc5 {[%clk 1:24:17]} 14. c4 {[%clk 1:01:11]}  dxc4 {[%clk 1:12:11]} 15. Qa4 {[%clk 1:00:44]}  Qb6 {[%clk 1:07:00]}
16. Qxc4 {[%clk 0:54:42]}  Rfd8 {[%clk 1:07:02]} 17. Nf5 {[%clk 0:44:17]}  Ne5 {[%clk 1:05:15]} 18. Qf4 {[%clk 0:43:01]}  Ng6 {[%clk 1:03:36]}
19. Qf3 {[%clk 0:35:48]}  Rac8 {[%clk 0:44:00]} 20. a4 {[%clk 0:29:48]}  Rd3 {[%clk 0:29:05]} 21. a5 {[%clk 0:22:19]}  Qb5 {[%clk 0:23:39]}
22. a6 {[%clk 0:19:09]}  c4 {[%clk 0:16:33]} 23. Nh6+ {[%clk 0:07:50]}  gxh6 {[%clk 0:16:53]} 24. Qxf6 {[%clk 0:08:17]}  Rc6 {[%clk 0:12:54]}
25. Qf3 {[%clk 0:07:59]}  c3 {[%clk 0:07:39]} 26. Qe2 {[%clk 0:06:02]}  Rxa6 {[%clk 0:01:50]} 27. Rxa6 {[%clk 0:04:59]}  Qxa6 {[%clk 0:02:17]}
28. f4 {[%clk 0:05:10]}  Qc4 {[%clk 0:01:00]} 29. f5 {[%clk 0:02:31]}  Ne5 {[%clk 0:01:02]} 30. f6 {[%clk 0:02:19]}  c2 {[%clk 0:01:00]}
31. Qf2 {[%clk 0:02:20]}  Ng4 {[%clk 0:00:34]} 32. Qg3 {[%clk 0:02:25]}  Rd8 {[%clk 0:00:36]} 33. h3 {[%clk 0:02:32]}  h5 {[%clk 0:01:03]}
34. hxg4 {[%clk 0:02:51]}  hxg4 {[%clk 0:01:21]} 35. Rf4 {[%clk 0:02:53]}  Rd1+ {[%clk 0:01:33]} 36. Kh2 {[%clk 0:03:18]}  Qxf4 {[%clk 0:01:32]}
37. Qxf4 {[%clk 0:03:35]} 1-0

[Event "2026 European Womens Championship"]
[Site "Batumi, GE"]
[Date "2026.05.29"]
[Round "5"]
[White "Roebers, Eline"]
[Black "Charkhalashvili, Inga"]
[Result "1-0"]
[Board "58"]
[TimeControl "5400+30"]
[WhiteFideId "1058401"]
[BlackFideId "13601431"]
[WhiteElo "2389"]
[BlackElo "2235"]
[WhiteTitle "IM"]
[BlackTitle "WGM"]
[WhiteClock "0:04:31"]
[BlackClock "0:03:56"]
[Variant "Standard"]

1. e4 {[%clk 1:29:30]}  c6 {[%clk 1:30:53]} 2. c4 {[%clk 1:29:27]}  d6 {[%clk 1:27:35]} 3. d4 {[%clk 1:27:59]}  e5 {[%clk 1:27:26]}
4. Nf3 {[%clk 1:27:51]}  Qc7 {[%clk 1:26:31]} 5. Nc3 {[%clk 1:28:07]}  Nf6 {[%clk 1:26:43]} 6. Be2 {[%clk 1:27:21]}  Be7 {[%clk 1:26:46]}
7. O-O {[%clk 1:27:20]}  O-O {[%clk 1:27:10]} 8. h3 {[%clk 1:24:46]}  a6 {[%clk 1:19:47]} 9. Be3 {[%clk 1:20:11]}  Nbd7 {[%clk 1:11:47]}
10. Rc1 {[%clk 1:16:42]}  exd4 {[%clk 1:11:07]} 11. Nxd4 {[%clk 1:16:38]}  Re8 {[%clk 1:06:54]} 12. Nf5 {[%clk 0:59:30]}  Bf8 {[%clk 1:05:48]}
13. f3 {[%clk 0:59:25]}  Nc5 {[%clk 1:03:06]} 14. Qd2 {[%clk 0:57:26]}  Bxf5 {[%clk 1:01:27]} 15. exf5 {[%clk 0:56:41]}  Qe7 {[%clk 0:59:50]}
16. Bf2 {[%clk 0:55:11]}  Na4 {[%clk 0:57:43]} 17. Rfe1 {[%clk 0:39:56]}  Nxc3 {[%clk 0:56:20]} 18. Qxc3 {[%clk 0:40:19]}  Qd7 {[%clk 0:55:28]}
19. Bd3 {[%clk 0:38:55]}  d5 {[%clk 0:54:34]} 20. c5 {[%clk 0:37:17]}  Rxe1+ {[%clk 0:52:23]} 21. Rxe1 {[%clk 0:36:28]}  Re8 {[%clk 0:52:44]}
22. b4 {[%clk 0:30:53]}  d4 {[%clk 0:43:10]} 23. Qc4 {[%clk 0:28:14]}  Rd8 {[%clk 0:35:55]} 24. Rd1 {[%clk 0:27:38]}  Qd5 {[%clk 0:34:55]}
25. a3 {[%clk 0:25:41]}  a5 {[%clk 0:34:39]} 26. Qc2 {[%clk 0:22:27]}  axb4 {[%clk 0:34:57]} 27. axb4 {[%clk 0:22:54]}  Qe5 {[%clk 0:26:52]}
28. Bc4 {[%clk 0:19:47]}  b6 {[%clk 0:24:18]} 29. cxb6 {[%clk 0:19:50]}  Bxb4 {[%clk 0:22:47]} 30. Qb3 {[%clk 0:19:42]}  c5 {[%clk 0:12:05]}
31. Bxf7+ {[%clk 0:18:55]}  Kf8 {[%clk 0:12:03]} 32. Be6 {[%clk 0:19:04]}  Qb8 {[%clk 0:06:15]} 33. Rxd4 {[%clk 0:09:12]}  cxd4 {[%clk 0:05:45]}
34. Qxb4+ {[%clk 0:09:33]}  Qd6 {[%clk 0:06:01]} 35. Be1 {[%clk 0:06:09]}  Ne8 {[%clk 0:03:58]} 36. b7 {[%clk 0:04:22]}  d3 {[%clk 0:03:56]}
37. Bc8 {[%clk 0:04:31]} 1-0